[Event "III Duchamp Open 2019"]
[Site "Rio de Janeiro"]
[Date "2019.12.11"]
[Round "6.16"]
[White "Molina, Roberto Junio Brito"]
[Black "Sobrero, Sebastian"]
[Result "1/2-1/2"]
[ECO "E11"]
[WhiteElo "2448"]
[BlackElo "2059"]
[Annotator "ChessBase"]
[PlyCount "82"]
[EventDate "2019.12.07"]
[EventType "swiss"]
[EventCountry "BRA"]
[SourceTitle "playchess.com"]
[Source "ChessBase"]
[SourceQuality "1"]
[TimeControl "40/5400+30:1800+30"]

1. d4 {[%emt 0:09:50]} Nf6 {[%emt 0:01:07]} 2. c4 {[%emt 0:00:07]} e6 {[%emt 0:00:35]} 3. Nf3 {[%emt 0:00:12]} Bb4+ {[%emt 0:01:24]} 4. Bd2 {[%emt 0:03:35]} Be7 {[%emt 0:00:30]} 5. Nc3 {[%emt 0:00:30]} d5 6. Qc2 {[%emt 0:03:04]} O-O {[%emt 0:04:05]} 7. e4 {[%emt 0:00:16]} dxe4 {[%emt 0:07:36]} 8. Nxe4 {[%emt 0:00:23]} Nbd7 {[%emt 0:05:36]} 9. Bc3 {[%emt 0:05:38]} Nxe4 {[%emt 0:00:10]} 10. Qxe4 {[%emt 0:00:28]} Nf6 {[%emt 0:00:34]} 11. Qc2 {[%emt 0:00:41]} b6 {[%emt 0:00:46]} 12. O-O-O Bb7 13. Ne5 {[%emt 0:02:24]} b5 {[%emt 0:09:26]} 14. cxb5 {[%emt 0:00:32]} a6 {[%emt 0:13:51]} 15. Nc6 {[%emt 0:00:56]} Bxc6 {[%emt 0:00:17]} 16. bxc6 Qd5 17. Kb1 {[%emt 0:17:47]} Qxc6 {[%emt 0:00:50]} 18. Bd3 {[%emt 0:06:48]} g6 {[%emt 0:08:26]} 19. h4 Nd5 {[%emt 0:06:49]} 20. h5 {[%emt 0:04:19]} Rab8 {[%emt 0:08:42]} 21. Bd2 {[%emt 0:02:25]} Qxc2+ {[%emt 0:04:23]} 22. Kxc2 {[%emt 0:00:32]} Nb4+ {[%emt 0:03:23]} 23. Bxb4 {[%emt 0:00:06]} Rxb4 {[%emt 0:00:08]} 24. b3 {[%emt 0:05:01]} Rxd4 {[%emt 0:06:59]} 25. a4 a5 26. hxg6 {[%emt 0:02:38]} hxg6 {[%emt 0:00:45]} 27. Bc4 {[%emt 0:03:21]} Rfd8 {[%emt 0:03:35]} 28. Rxd4 {[%emt 0:00:05]} Rxd4 {[%emt 0:00:08]} 29. Rd1 {[%emt 0:00:05]} Bc5 {[%emt 0:00:18]} 30. Rxd4 {[%emt 0:00:05]} Bxd4 {[%emt 0:00:07]} 31. f3 {[%emt 0:00:03]} Bc5 {[%emt 0:00:36]} 32. Kd3 {[%emt 0:00:16]} Kf8 {[%emt 0:00:23]} 33. g4 {[%emt 0:00:30]} Ke7 {[%emt 0:00:51]} 34. g5 {[%emt 0:02:19]} Kd6 {[%emt 0:01:16]} 35. Ke4 {[%emt 0:00:16]} Bb6 {[%emt 0:00:17]} 36. f4 {[%emt 0:00:30]} Bc5 37. Bb5 {[%emt 0:00:15]} Bb4 {[%emt 0:01:04]} 38. Be8 Ke7 {[%emt 0:00:06]} 39. Bb5 {[%emt 0:00:59]} Kd6 {[%emt 0:00:04]} 40. Be8 Ke7 {[%emt 0:00:07]} 41. Bb5 {[%emt 0:30:06]} Kd6 {[%emt 0:30:09]} 1/2-1/2

[Event "III Duchamp Open 2019"]
[Site "Rio de Janeiro"]
[Date "2019.12.13"]
[Round "9.1"]
[White "Martinez Alcantara, Jose Eduardo"]
[Black "Hernandez Guerrero, Gilberto"]
[Result "1/2-1/2"]
[ECO "A05"]
[WhiteElo "2592"]
[BlackElo "2554"]
[Annotator "ChessBase"]
[PlyCount "73"]
[EventDate "2019.12.07"]
[EventType "swiss"]
[EventCountry "BRA"]
[SourceTitle "playchess.com"]
[Source "ChessBase"]
[SourceQuality "1"]
[TimeControl "40/5400+30:1800+30"]

1. Nf3 {[%emt 0:00:00]} Nf6 {[%emt 0:00:10]} 2. c4 {[%emt 0:00:00]} g6 {[%emt 0:00:52]} 3. g3 {[%emt 0:00:00]} Bg7 {[%emt 0:00:30]} 4. d4 {[%emt 0:00:00]} O-O {[%emt 0:01:24]} 5. Bg2 {[%emt 0:00:00]} c6 {[%emt 0:00:11]} 6. O-O {[%emt 0:00:00]} d5 {[%emt 0:03:08]} 7. b3 {[%emt 0:00:01]} Bf5 {[%emt 0:03:10]} 8. Bb2 {[%emt 0:00:16]} a5 {[%emt 0:07:52]} 9. e3 {[%emt 0:07:13]} Ne4 {[%emt 0:09:02]} 10. Na3 {[%emt 0:05:27]} Na6 {[%emt 0:03:49]} 11. Qe2 {[%emt 0:06:56]} Nb4 {[%emt 0:05:10]} 12. Rfd1 {[%emt 0:03:03]} h6 {[%emt 0:04:14]} 13. Ne5 {[%emt 0:04:21]} g5 {[%emt 0:10:06]} 14. f3 {[%emt 0:03:40]} Nd6 {[%emt 0:00:19]} 15. e4 {[%emt 0:04:07]} Bh7 {[%emt 0:00:07]} 16. c5 {[%emt 0:15:08]} Ne8 {[%emt 0:00:49]} 17. Ng4 {[%emt 0:00:13]} Nf6 {[%emt 0:06:37]} 18. Nf2 {[%emt 0:02:43]} e6 {[%emt 0:02:15]} 19. Nb1 {[%emt 0:01:40]} b6 {[%emt 0:03:41]} 20. cxb6 {[%emt 0:00:13]} Qxb6 {[%emt 0:01:02]} 21. Nc3 {[%emt 0:00:04]} Rfd8 {[%emt 0:07:39]} 22. Na4 {[%emt 0:02:42]} Qb5 {[%emt 0:00:45]} 23. Rd2 {[%emt 0:06:36]} Qxe2 {[%emt 0:05:32]} 24. Rxe2 {[%emt 0:00:02]} g4 {[%emt 0:00:30]} 25. fxg4 {[%emt 0:08:41]} dxe4 {[%emt 0:00:53]} 26. Nxe4 {[%emt 0:00:13]} Nxe4 {[%emt 0:02:24]} 27. Bxe4 {[%emt 0:00:05]} Bxd4+ {[%emt 0:00:53]} 28. Bxd4 {[%emt 0:00:16]} Rxd4 {[%emt 0:00:08]} 29. Bxh7+ {[%emt 0:00:04]} Kxh7 {[%emt 0:00:05]} 30. Rf1 {[%emt 0:00:11]} Kg7 {[%emt 0:02:10]} 31. h3 {[%emt 0:02:24]} Rd3 {[%emt 0:03:55]} 32. Ref2 {[%emt 0:00:48]} Ra7 {[%emt 0:00:51]} 33. Kh2 {[%emt 0:00:02]} Nd5 {[%emt 0:03:28]} 34. Nb2 {[%emt 0:04:58]} Rc3 {[%emt 0:00:44]} 35. Na4 {[%emt 0:03:18]} Re3 {[%emt 0:01:00]} 36. Nb2 {[%emt 0:06:44]} Rc3 {[%emt 0:01:03]} 37. Na4 {[%emt 0:09:54]} 1/2-1/2

[Event "III Duchamp Open 2019"]
[Site "Rio de Janeiro"]
[Date "2019.12.13"]
[Round "9.2"]
[White "Cruz, Cristhian"]
[Black "Diamant, Andre"]
[Result "1/2-1/2"]
[ECO "A26"]
[WhiteElo "2562"]
[BlackElo "2533"]
[Annotator "ChessBase"]
[PlyCount "22"]
[EventDate "2019.12.07"]
[EventType "swiss"]
[EventCountry "BRA"]
[SourceTitle "playchess.com"]
[Source "ChessBase"]
[SourceQuality "1"]
[TimeControl "40/5400+30:1800+30"]

1. c4 {[%emt 0:00:00]} g6 {[%emt 0:00:03]} 2. g3 {[%emt 0:00:09]} Bg7 {[%emt 0:01:04]} 3. Bg2 {[%emt 0:01:19]} e5 {[%emt 0:00:23]} 4. Nc3 {[%emt 0:01:31]} Nc6 {[%emt 0:00:55]} 5. d3 {[%emt 0:01:15]} d6 {[%emt 0:00:11]} 6. Nf3 {[%emt 0:02:00]} Nf6 {[%emt 0:01:48]} 7. O-O {[%emt 0:02:42]} O-O {[%emt 0:00:51]} 8. Rb1 {[%emt 0:01:46]} a5 {[%emt 0:00:04]} 9. a3 {[%emt 0:00:25]} h6 {[%emt 0:00:03]} 10. b4 {[%emt 0:02:32]} axb4 {[%emt 0:00:07]} 11. axb4 {[%emt 0:00:05]} Be6 {[%emt 0:00:05]} 1/2-1/2

[Event "III Duchamp Open 2019"]
[Site "Rio de Janeiro"]
[Date "2019.12.13"]
[Round "9.3"]
[White "Aranha Filho, Alvaro Z."]
[Black "Alonso, Salvador"]
[Result "0-1"]
[ECO "D10"]
[WhiteElo "2304"]
[BlackElo "2481"]
[Annotator "ChessBase"]
[PlyCount "100"]
[EventDate "2019.12.07"]
[EventType "swiss"]
[EventCountry "BRA"]
[SourceTitle "playchess.com"]
[Source "ChessBase"]
[SourceQuality "1"]
[TimeControl "40/5400+30:1800+30"]

1. d4 {[%emt 0:05:43]} d5 {[%emt 0:00:00]} 2. c4 {[%emt 0:03:03]} c6 {[%emt 0:00:00]} 3. Nf3 {[%emt 0:01:16]} Nf6 {[%emt 0:00:03]} 4. cxd5 {[%emt 0:00:04]} cxd5 {[%emt 0:00:14]} 5. Nc3 {[%emt 0:00:05]} Nc6 {[%emt 0:00:23]} 6. e3 {[%emt 0:00:07]} a6 {[%emt 0:06:24]} 7. Ne5 {[%emt 0:01:19]} e6 {[%emt 0:00:32]} 8. f4 {[%emt 0:01:48]} Bd6 {[%emt 0:00:49]} 9. Bd3 {[%emt 0:00:29]} Ne7 {[%emt 0:10:00]} 10. O-O {[%emt 0:01:24]} b5 {[%emt 0:01:14]} 11. Bd2 {[%emt 0:03:41]} O-O {[%emt 0:04:37]} 12. a3 {[%emt 0:05:21]} Bb7 {[%emt 0:01:36]} 13. Qf3 {[%emt 0:02:13]} Rc8 {[%emt 0:42:46]} 14. Be1 {[%emt 0:02:45]} b4 {[%emt 0:04:33]} 15. axb4 {[%emt 0:01:53]} Bxb4 {[%emt 0:00:05]} 16. Bh4 {[%emt 0:03:21]} Ng6 {[%emt 0:02:22]} 17. Bg5 {[%emt 0:03:47]} Bxc3 {[%emt 0:08:07]} 18. bxc3 {[%emt 0:00:33]} Rxc3 {[%emt 0:00:11]} 19. Qh3 {[%emt 0:11:10]} Qc8 {[%emt 0:04:24]} 20. f5 {[%emt 0:04:54]} Nxe5 {[%emt 0:00:09]} 21. dxe5 {[%emt 0:00:10]} Rxd3 {[%emt 0:03:22]} 22. exf6 {[%emt 0:01:35]} d4 {[%emt 0:02:10]} 23. fxg7 {[%emt 0:02:11]} Re8 {[%emt 0:00:15]} 24. f6 {[%emt 0:12:41]} dxe3 {[%emt 0:01:51]} 25. Rac1 {[%emt 0:04:30]} Qd7 {[%emt 0:00:26]} 26. Bxe3 {[%emt 0:01:28]} Qd5 {[%emt 0:04:14]} 27. Rce1 {[%emt 0:00:48]} a5 {[%emt 0:00:42]} 28. Qg3 {[%emt 0:01:22]} a4 {[%emt 0:00:23]} 29. Rf4 {[%emt 0:00:37]} a3 {[%emt 0:00:34]} 30. Rh4 {[%emt 0:00:27]} Qf5 {[%emt 0:01:09]} 31. Rf1 {[%emt 0:00:58]} a2 {[%emt 0:00:42]} 32. Rxf5 {[%emt 0:02:55]} exf5 {[%emt 0:00:01]} 33. Ra4 {[%emt 0:00:46]} Rdxe3 {[%emt 0:00:14]} 34. Qc7 {[%emt 0:00:02]} Re1+ {[%emt 0:00:17]} 35. Kf2 {[%emt 0:00:05]} R1e2+ {[%emt 0:01:57]} 36. Kg3 {[%emt 0:01:21]} Rxg2+ {[%emt 0:00:25]} 37. Kh3 {[%emt 0:00:17]} a1=Q {[%emt 0:00:21]} 38. Rxa1 {[%emt 0:00:15]} Re3+ {[%emt 0:00:05]} 39. Qg3 {[%emt 0:00:21]} Rgxg3+ {[%emt 0:00:42]} 40. hxg3 {[%emt 0:00:12]} Re6 {[%emt 0:00:57]} 41. Rb1 {[%emt 0:30:22]} Bc8 {[%emt 0:30:40]} 42. Rc1 {[%emt 0:00:51]} Re8 {[%emt 0:00:05]} 43. Kh4 {[%emt 0:00:31]} h6 {[%emt 0:00:10]} 44. Kh5 {[%emt 0:01:51]} Kh7 {[%emt 0:00:34]} 45. Rc7 {[%emt 0:00:18]} Re1 {[%emt 0:00:00]} 46. g8=Q+ {[%emt 0:00:00]} Kxg8 {[%emt 0:00:00]} 47. Kxh6 {[%emt 0:00:00]} Rh1+ {[%emt 0:00:00]} 48. Kg5 {[%emt 0:00:00]} Be6 {[%emt 0:00:00]} 49. Rc3 {[%emt 0:00:00]} Kh7 {[%emt 0:00:00]} 50. Ra3 {[%emt 0:00:00]} Rh6 0-1

[Event "III Duchamp Open 2019"]
[Site "Rio de Janeiro"]
[Date "2019.12.13"]
[Round "9.4"]
[White "Perdomo, Leandro"]
[Black "Supi, Luis Paulo"]
[Result "1/2-1/2"]
[ECO "D59"]
[WhiteElo "2474"]
[BlackElo "2578"]
[Annotator "ChessBase"]
[PlyCount "85"]
[EventDate "2019.12.07"]
[EventType "swiss"]
[EventCountry "BRA"]
[SourceTitle "playchess.com"]
[Source "ChessBase"]
[SourceQuality "1"]
[TimeControl "40/5400+30:1800+30"]

1. d4 {[%emt 0:00:00]} d5 {[%emt 0:01:21]} 2. c4 {[%emt 0:00:00]} e6 {[%emt 0:00:06]} 3. Nc3 {[%emt 0:00:00]} Be7 {[%emt 0:00:02]} 4. Nf3 {[%emt 0:00:00]} Nf6 {[%emt 0:00:18]} 5. Bg5 {[%emt 0:00:12]} h6 {[%emt 0:00:47]} 6. Bh4 {[%emt 0:00:06]} O-O {[%emt 0:00:18]} 7. e3 {[%emt 0:00:05]} b6 {[%emt 0:00:12]} 8. cxd5 {[%emt 0:02:48]} Nxd5 {[%emt 0:02:30]} 9. Bxe7 {[%emt 0:00:10]} Qxe7 {[%emt 0:00:09]} 10. Nxd5 {[%emt 0:00:06]} exd5 {[%emt 0:00:03]} 11. Rc1 {[%emt 0:00:35]} Be6 {[%emt 0:00:49]} 12. Qa4 {[%emt 0:00:32]} c5 {[%emt 0:06:06]} 13. dxc5 {[%emt 0:02:20]} bxc5 {[%emt 0:00:02]} 14. Qa3 {[%emt 0:01:16]} Rc8 {[%emt 0:01:01]} 15. Be2 {[%emt 0:11:49]} Qf8 {[%emt 0:16:24]} 16. O-O {[%emt 0:17:50]} a5 {[%emt 0:01:19]} 17. Rc3 {[%emt 0:07:58]} Nd7 {[%emt 0:01:12]} 18. Rfc1 {[%emt 0:02:26]} Rcb8 {[%emt 0:00:35]} 19. R3c2 {[%emt 0:18:35]} a4 {[%emt 0:02:40]} 20. Qc3 {[%emt 0:05:54]} Rb4 {[%emt 0:05:33]} 21. Ne5 {[%emt 0:08:09]} d4 {[%emt 0:04:09]} 22. exd4 {[%emt 0:00:06]} cxd4 {[%emt 0:00:07]} 23. Qc7 {[%emt 0:03:39]} Nxe5 {[%emt 0:00:47]} 24. Qxe5 {[%emt 0:00:03]} Bxa2 {[%emt 0:00:40]} 25. Bd3 {[%emt 0:07:29]} Re8 {[%emt 0:03:19]} 26. Qf4 {[%emt 0:00:19]} Be6 {[%emt 0:10:40]} 27. h4 {[%emt 0:04:02]} Rb3 {[%emt 0:05:06]} 28. Qe4 {[%emt 0:00:37]} g6 {[%emt 0:00:09]} 29. Re2 {[%emt 0:00:32]} Rd8 {[%emt 0:00:52]} 30. Bc4 {[%emt 0:03:56]} Bxc4 {[%emt 0:03:20]} 31. Rxc4 {[%emt 0:00:01]} d3 {[%emt 0:04:28]} 32. Rd2 {[%emt 0:00:02]} a3 {[%emt 0:00:36]} 33. bxa3 {[%emt 0:00:21]} Qxa3 {[%emt 0:00:17]} 34. Rc6 {[%emt 0:02:11]} Rb4 {[%emt 0:04:27]} 35. Rxg6+ {[%emt 0:02:47]} Kf8 {[%emt 0:00:02]} 36. Qe5 {[%emt 0:00:30]} Rb1+ {[%emt 0:07:15]} 37. Kh2 {[%emt 0:00:02]} fxg6 {[%emt 0:00:52]} 38. Qf6+ {[%emt 0:00:50]} Ke8 {[%emt 0:00:12]} 39. Qxg6+ {[%emt 0:00:39]} Ke7 {[%emt 0:00:53]} 40. Qh7+ {[%emt 0:00:25]} Ke6 {[%emt 0:01:06]} 41. Qe4+ {[%emt 0:07:40]} Kf6 {[%emt 0:02:13]} 42. Qf4+ {[%emt 0:00:20]} Ke7 {[%emt 0:07:54]} 43. Qe4+ {[%emt 0:00:11]} 1/2-1/2

[Event "III Duchamp Open 2019"]
[Site "Rio de Janeiro"]
[Date "2019.12.13"]
[Round "9.5"]
[White "Galego, Luis"]
[Black "Limp, Eduardo Thelio"]
[Result "1/2-1/2"]
[ECO "B30"]
[WhiteElo "2483"]
[BlackElo "2356"]
[Annotator "ChessBase"]
[PlyCount "68"]
[EventDate "2019.12.07"]
[EventType "swiss"]
[EventCountry "BRA"]
[SourceTitle "playchess.com"]
[Source "ChessBase"]
[SourceQuality "1"]
[TimeControl "40/5400+30:1800+30"]

1. e4 {[%emt 0:00:00]} c5 {[%emt 0:00:58]} 2. Nf3 {[%emt 0:00:24]} Nc6 {[%emt 0:00:09]} 3. Nc3 {[%emt 0:00:30]} e6 {[%emt 0:01:31]} 4. g3 {[%emt 0:01:18]} d5 {[%emt 0:02:12]} 5. exd5 {[%emt 0:03:48]} exd5 {[%emt 0:00:09]} 6. d3 {[%emt 0:00:13]} Nf6 {[%emt 0:01:25]} 7. Bg2 {[%emt 0:00:03]} d4 {[%emt 0:02:37]} 8. Ne2 {[%emt 0:03:11]} Bd6 {[%emt 0:03:52]} 9. O-O {[%emt 0:02:05]} O-O {[%emt 0:00:33]} 10. Bf4 {[%emt 0:03:02]} Bxf4 {[%emt 0:06:19]} 11. Nxf4 {[%emt 0:04:32]} Re8 {[%emt 0:03:52]} 12. h3 {[%emt 0:04:48]} Qc7 {[%emt 0:09:27]} 13. Nd2 {[%emt 0:01:12]} Bd7 {[%emt 0:12:15]} 14. Ne4 {[%emt 0:12:52]} Nxe4 {[%emt 0:01:41]} 15. dxe4 {[%emt 0:00:28]} Ne7 {[%emt 0:10:15]} 16. Qd2 {[%emt 0:05:57]} Bc6 {[%emt 0:01:15]} 17. Rfe1 {[%emt 0:03:20]} Rad8 {[%emt 0:00:41]} 18. c3 {[%emt 0:02:05]} Ng6 {[%emt 0:02:27]} 19. Nd5 {[%emt 0:01:42]} Bxd5 {[%emt 0:00:07]} 20. exd5 {[%emt 0:00:02]} dxc3 {[%emt 0:01:16]} 21. Qxc3 {[%emt 0:01:54]} Qd6 {[%emt 0:02:53]} 22. a4 {[%emt 0:00:44]} Kf8 {[%emt 0:04:04]} 23. a5 {[%emt 0:00:52]} Rxe1+ {[%emt 0:00:34]} 24. Rxe1 {[%emt 0:00:04]} Ne7 {[%emt 0:00:17]} 25. Qd3 {[%emt 0:00:50]} g6 {[%emt 0:01:55]} 26. Rc1 {[%emt 0:04:46]} b6 {[%emt 0:00:39]} 27. axb6 {[%emt 0:01:28]} axb6 {[%emt 0:00:08]} 28. Ra1 {[%emt 0:07:48]} h5 {[%emt 0:01:09]} 29. h4 {[%emt 0:03:58]} Kg8 {[%emt 0:01:21]} 30. Qb5 {[%emt 0:01:17]} Kg7 {[%emt 0:02:10]} 31. Rb1 {[%emt 0:04:22]} Qf6 {[%emt 0:02:03]} 32. Rd1 {[%emt 0:01:28]} Qd6 {[%emt 0:00:14]} 33. Rb1 {[%emt 0:03:52]} Qf6 {[%emt 0:00:17]} 34. Rd1 {[%emt 0:00:06]} Qd6 1/2-1/2

[Event "III Duchamp Open 2019"]
[Site "Rio de Janeiro"]
[Date "2019.12.13"]
[Round "9.7"]
[White "Labussiere, Victor"]
[Black "Di Berardino, Diego Rafael"]
[Result "1-0"]
[ECO "A31"]
[WhiteElo "2295"]
[BlackElo "2489"]
[Annotator "ChessBase"]
[PlyCount "57"]
[EventDate "2019.12.07"]
[EventType "swiss"]
[EventCountry "BRA"]
[SourceTitle "playchess.com"]
[Source "ChessBase"]
[SourceQuality "1"]
[TimeControl "40/5400+30:1800+30"]

1. Nf3 {[%emt 0:01:38]} c5 {[%emt 0:00:00]} 2. c4 {[%emt 0:02:34]} Nf6 {[%emt 0:00:13]} 3. d4 {[%emt 0:02:51]} cxd4 {[%emt 0:00:05]} 4. Nxd4 {[%emt 0:00:08]} b6 {[%emt 0:01:00]} 5. f3 {[%emt 0:05:24]} Bb7 {[%emt 0:00:32]} 6. e4 {[%emt 0:00:39]} d6 {[%emt 0:00:05]} 7. Nc3 {[%emt 0:01:58]} e6 {[%emt 0:00:08]} 8. Be3 {[%emt 0:01:54]} Be7 {[%emt 0:00:08]} 9. Be2 O-O {[%emt 0:00:12]} 10. O-O {[%emt 0:00:42]} a6 {[%emt 0:02:06]} 11. Qd2 {[%emt 0:03:05]} Qc7 {[%emt 0:04:31]} 12. Rfc1 {[%emt 0:00:38]} Rc8 {[%emt 0:10:04]} 13. Qe1 {[%emt 0:16:09]} Qd8 {[%emt 0:09:03]} 14. Kh1 {[%emt 0:03:34]} Nbd7 {[%emt 0:06:32]} 15. b3 {[%emt 0:11:36]} h5 {[%emt 0:14:27]} 16. Rc2 {[%emt 0:07:47]} h4 {[%emt 0:01:49]} 17. Qxh4 {[%emt 0:05:26]} Nxe4 {[%emt 0:04:47]} 18. Qh3 {[%emt 0:08:50]} Nef6 {[%emt 0:04:29]} 19. Rd1 {[%emt 0:04:29]} Nf8 {[%emt 0:06:39]} 20. f4 {[%emt 0:03:52]} Ne4 {[%emt 0:12:06]} 21. Bf3 {[%emt 0:01:27]} Nxc3 {[%emt 0:00:21]} 22. Rxc3 {[%emt 0:00:42]} Qc7 {[%emt 0:03:12]} 23. f5 {[%emt 0:03:17]} e5 {[%emt 0:00:58]} 24. Nc2 {[%emt 0:00:47]} b5 {[%emt 0:06:25]} 25. Bxb7 {[%emt 0:03:15]} Qxb7 {[%emt 0:00:03]} 26. Nb4 {[%emt 0:00:04]} Nd7 {[%emt 0:06:13]} 27. Nd5 {[%emt 0:01:54]} Bd8 {[%emt 0:00:32]} 28. Bh6 {[%emt 0:02:11]} Bf6 {[%emt 0:05:00]} 29. Rg3 {[%emt 0:01:00]} 1-0

[Event "III Duchamp Open 2019"]
[Site "Rio de Janeiro"]
[Date "2019.12.13"]
[Round "9.8"]
[White "Matsuura, Everaldo"]
[Black "Guimaraes, Diogo Duarte"]
[Result "1/2-1/2"]
[ECO "B13"]
[WhiteElo "2448"]
[BlackElo "2322"]
[Annotator "NA"]
[PlyCount "137"]
[EventDate "2019.12.07"]
[EventType "swiss"]
[EventCountry "BRA"]
[SourceTitle "playchess.com"]
[Source "ChessBase"]
[SourceQuality "1"]
[TimeControl "40/5400+30:1800+30"]

1. c4 {[%emt 0:01:18]} Nf6 {[%emt 0:13:17]} 2. Nc3 {[%emt 0:00:29]} c6 {[%emt 0:00:02]} 3. e4 {[%emt 0:00:35]} d5 {[%emt 0:00:05]} 4. exd5 {[%emt 0:00:22]} cxd5 {[%emt 0:00:04]} 5. d4 {[%emt 0:00:15]} Nc6 {[%emt 0:01:50]} 6. Bg5 {[%emt 0:00:18]} e6 {[%emt 0:05:20]} 7. Nf3 {[%emt 0:00:32]} Be7 {[%emt 0:00:16]} 8. c5 {[%emt 0:00:38]} O-O {[%emt 0:00:18]} 9. Bb5 {[%emt 0:00:19]} Bd7 {[%emt 0:10:26]} 10. Rc1 {[%emt 0:07:52]} h6 {[%emt 0:04:37]} 11. Bf4 {[%emt 0:02:58]} Ne4 {[%emt 0:02:07]} 12. O-O {[%emt 0:03:14]} Qa5 {[%emt 0:12:57]} 13. Bd3 {[%emt 0:05:42]} f5 {[%emt 0:13:25]} 14. Ne5 {[%emt 0:12:07]} Nxe5 {[%emt 0:03:11]} 15. Bxe5 {[%emt 0:00:20]} Rac8 {[%emt 0:07:54]} 16. f3 {[%emt 0:08:07]} Nf6 {[%emt 0:04:01]} 17. Rb1 {[%emt 0:03:23]} Qd8 {[%emt 0:03:27]} 18. b4 {[%emt 0:01:52]} Be8 {[%emt 0:01:34]} 19. Nb5 {[%emt 0:10:47]} Bxb5 {[%emt 0:06:00]} 20. Bxb5 {[%emt 0:00:27]} Nd7 {[%emt 0:00:03]} 21. Bxd7 {[%emt 0:00:58]} Qxd7 {[%emt 0:00:03]} 22. b5 {[%emt 0:00:37]} Bf6 {[%emt 0:00:53]} 23. Re1 {[%emt 0:00:19]} Ra8 {[%emt 0:03:18]} 24. Qc2 {[%emt 0:12:18]} Rfc8 {[%emt 0:00:14]} 25. Bxf6 {[%emt 0:12:47]} gxf6 {[%emt 0:00:04]} 26. Rbc1 {[%emt 0:01:48]} Rc7 {[%emt 0:02:30]} 27. a4 {[%emt 0:01:20]} Re8 {[%emt 0:01:14]} 28. f4 {[%emt 0:00:47]} b6 {[%emt 0:01:27]} 29. c6 {[%emt 0:01:33]} Qd6 {[%emt 0:00:03]} 30. Qd2 {[%emt 0:00:54]} Kh7 {[%emt 0:00:23]} 31. Re2 {[%emt 0:02:08]} Qa3 {[%emt 0:00:43]} 32. Qc2 {[%emt 0:01:10]} Qd6 {[%emt 0:00:53]} 33. g3 {[%emt 0:00:46]} h5 {[%emt 0:01:14]} 34. Rce1 {[%emt 0:00:20]} Rce7 {[%emt 0:00:36]} 35. Qd3 {[%emt 0:04:18]} Kh6 {[%emt 0:00:40]} 36. Qd2 {[%emt 0:00:27]} Rg8 {[%emt 0:00:17]} 37. Kh1 {[%emt 0:00:56]} Kg6 {[%emt 0:01:26]} 38. Re3 {[%emt 0:00:10]} Kf7 {[%emt 0:00:53]} 39. Qe2 {[%emt 0:00:22]} Rh8 {[%emt 0:00:09]} 40. h3 {[%emt 0:02:22]} Rh7 {[%emt 0:01:23]} 41. c7 {[%emt 0:05:39]} Rh8 {[%emt 0:01:22]} 42. Rc3 {[%emt 0:02:55]} Ree8 {[%emt 0:10:59]} 43. Rc6 {[%emt 0:01:10]} Qd7 {[%emt 0:00:15]} 44. Kg2 {[%emt 0:16:14]} Kg6 {[%emt 0:01:52]} 45. Kf3 {[%emt 0:03:26]} Re7 {[%emt 0:01:00]} 46. Qc2 {[%emt 0:02:41]} Rc8 {[%emt 0:02:38]} 47. g4 {[%emt 0:01:02]} Kf7 {[%emt 0:04:55]} 48. gxf5 {[%emt 0:01:06]} exf5 {[%emt 0:00:06]} 49. Rxe7+ {[%emt 0:01:22]} Kxe7 {[%emt 0:00:18]} 50. Kg3 {[%emt 0:00:48]} Kf7 {[%emt 0:00:34]} 51. Qe2 {[%emt 0:00:23]} Rxc7 {[%emt 0:00:49]} 52. Qxh5+ {[%emt 0:00:12]} Kg7 {[%emt 0:00:08]} 53. Kh4 {[%emt 0:01:01]} Rxc6 {[%emt 0:00:49]} 54. bxc6 {[%emt 0:00:06]} Qe6 {[%emt 0:00:12]} 55. Qf3 {[%emt 0:00:25]} Qxc6 {[%emt 0:00:17]} 56. Qg3+ {[%emt 0:00:38]} Kh7 {[%emt 0:03:17]} 57. Qd3 {[%emt 0:00:22]} Qe6 {[%emt 0:00:19]} 58. Qd2 {[%emt 0:00:51]} Kh6 {[%emt 0:00:25]} 59. Kg3 {[%emt 0:00:15]} Qc6 {[%emt 0:00:21]} 60. Qb4 {[%emt 0:00:26]} Qe8 {[%emt 0:00:24]} 61. Kh4 {[%emt 0:01:00]} a5 {[%emt 0:00:23]} 62. Qc3 {[%emt 0:00:15]} Qxa4 {[%emt 0:01:47]} 63. Qc8 {[%emt 0:00:12]} Kg7 {[%emt 0:00:27]} 64. Qc7+ {[%emt 0:00:45]} Kg6 {[%emt 0:01:12]} 65. Qd8 {[%emt 0:00:34]} Kf7 {[%emt 0:00:30]} 66. Qxd5+ {[%emt 0:00:07]} Kg6 {[%emt 0:01:52]} 67. Qg8+ {[%emt 0:00:23]} Kh6 {[%emt 0:00:05]} 68. Qh8+ {[%emt 0:00:22]} Kg6 {[%emt 0:00:01]} 69. Qg8+ {[%emt 0:01:09] b5} 1/2-1/2